[Event "*** Titled Tuesday Blitz"]
[Site "Chess.com"]
[Date "2018.09.04"]
[Round "4"]
[White "NikolaGry"]
[Black "GHANDEEVAM2003"]
[Result "1-0"]
[WhiteElo "2603"]
[BlackElo "2688"]
[TimeControl "180+2"]
[EndTime "14:30:49 PDT"]
[Termination "NikolaGry won by resignation"]

1. d4 {[%clk 0:03:01.9]} 1... Nf6 {[%clk 0:02:57.5]} 2. Nf3 {[%clk 0:03:02.6]}
2... g6 {[%clk 0:02:57.5]} 3. h3 {[%clk 0:03:02.1]} 3... Bg7 {[%clk 0:02:57.9]}
4. Bf4 {[%clk 0:03:02.9]} 4... O-O {[%clk 0:02:57.8]} 5. e3 {[%clk 0:03:03.9]}
5... d6 {[%clk 0:02:57.6]} 6. Be2 {[%clk 0:03:04.4]} 6... Nbd7 {[%clk
0:02:57.4]} 7. O-O {[%clk 0:03:04.7]} 7... Re8 {[%clk 0:02:58.3]} 8. c3 {[%clk
0:02:57.1]} 8... b6 {[%clk 0:02:58.9]} 9. a4 {[%clk 0:02:55.3]} 9... a5 {[%clk
0:02:56.3]} 10. Na3 {[%clk 0:02:53.6]} 10... Bb7 {[%clk 0:02:56.2]} 11. Nb5
{[%clk 0:02:53.2]} 11... e5 {[%clk 0:02:52]} 12. Bh2 {[%clk 0:02:48.7]} 12... e4
{[%clk 0:02:50.3]} 13. Nd2 {[%clk 0:02:48.8]} 13... h5 {[%clk 0:02:45.1]} 14.
Nc4 {[%clk 0:02:00.2]} 14... Nf8 {[%clk 0:02:41.8]} 15. Nxc7 {[%clk 0:01:42.7]}
15... Qxc7 {[%clk 0:02:39.2]} 16. Nxd6 {[%clk 0:01:43.5]} 16... Red8 {[%clk
0:02:20.9]} 17. Nxe4 {[%clk 0:01:41.8]} 17... Qe7 {[%clk 0:02:22.1]} 18. Nxf6+
{[%clk 0:01:39.2]} 18... Bxf6 {[%clk 0:02:24]} 19. Bf3 {[%clk 0:01:38]} 19...
Ne6 {[%clk 0:02:22.1]} 20. Bxb7 {[%clk 0:01:34.4]} 20... Qxb7 {[%clk 0:02:24]}
21. Qf3 {[%clk 0:01:33.6]} 21... Qxf3 {[%clk 0:02:21.2]} 22. gxf3 {[%clk
0:01:34.4]} 22... Rac8 {[%clk 0:02:22.1]} 23. Ra3 {[%clk 0:01:21.6]} 23... Rd7
{[%clk 0:02:01.6]} 24. Rb3 {[%clk 0:01:03]} 24... Rb7 {[%clk 0:02:02.7]} 25. Rb5
{[%clk 0:00:58.4]} 25... Nc7 {[%clk 0:01:57.2]} 26. Bxc7 {[%clk 0:00:57.5]}
26... Rcxc7 {[%clk 0:01:57.6]} 27. f4 {[%clk 0:00:56.4]} 27... Kf8 {[%clk
0:01:52.3]} 28. Rc1 {[%clk 0:00:55.3]} 28... Ke7 {[%clk 0:01:50.8]} 29. b3
{[%clk 0:00:54.7]} 29... Rc6 {[%clk 0:01:47.5]} 30. c4 {[%clk 0:00:53.3]} 30...
Bg7 {[%clk 0:01:46.4]} 31. Kg2 {[%clk 0:00:50.4]} 31... Kd7 {[%clk 0:01:42.1]}
32. Kf3 {[%clk 0:00:46.2]} 32... f5 {[%clk 0:01:40.3]} 33. Rd5+ {[%clk
0:00:43.9]} 33... Ke7 {[%clk 0:01:38.2]} 34. Rg1 {[%clk 0:00:42]} 34... Rd7
{[%clk 0:01:36.5]} 35. Rxd7+ {[%clk 0:00:39]} 35... Kxd7 {[%clk 0:01:38.4]} 36.
Ke2 {[%clk 0:00:36.7]} 36... Re6 {[%clk 0:01:25.1]} 37. Kd3 {[%clk 0:00:36.4]}
37... Bf8 {[%clk 0:01:23.5]} 38. f3 {[%clk 0:00:27.4]} 38... Bd6 {[%clk
0:01:23.4]} 39. Rg2 {[%clk 0:00:25.2]} 39... Ke7 {[%clk 0:01:21.6]} 40. Rg1
{[%clk 0:00:25.5]} 40... Kf7 {[%clk 0:01:22]} 41. Rg2 {[%clk 0:00:25.8]} 41...
Rf6 {[%clk 0:01:21.2]} 42. Rg1 {[%clk 0:00:26.4]} 42... Ba3 {[%clk 0:01:21.4]}
43. Rg2 {[%clk 0:00:26.2]} 43... Re6 {[%clk 0:01:21.5]} 44. Rc2 {[%clk
0:00:23.7]} 44... Bd6 {[%clk 0:01:19.2]} 45. Re2 {[%clk 0:00:20.4]} 45... Bc7
{[%clk 0:01:15.8]} 46. Rc2 {[%clk 0:00:21]} 46... Kf6 {[%clk 0:01:16.2]} 47. c5
{[%clk 0:00:21.8]} 47... bxc5 {[%clk 0:01:14.1]} 48. Rxc5 {[%clk 0:00:22.8]}
48... Bb6 {[%clk 0:01:14.3]} 49. Rb5 {[%clk 0:00:22.6]} 49... Bd8 {[%clk
0:01:13.7]} 50. b4 {[%clk 0:00:23.1]} 50... Rb6 {[%clk 0:00:58.6]} 51. Rxb6+
{[%clk 0:00:22.2]} 51... Bxb6 {[%clk 0:01:00.5]} 52. b5 {[%clk 0:00:19.2]} 52...
g5 {[%clk 0:00:42.2]} 53. e4 {[%clk 0:00:14.8]} 53... g4 {[%clk 0:00:27.8]} 54.
fxg4 {[%clk 0:00:10.9]} 54... fxg4 {[%clk 0:00:27.9]} 55. hxg4 {[%clk
0:00:11.2]} 55... hxg4 {[%clk 0:00:20.1]} 56. Ke3 {[%clk 0:00:12.1]} 56... Kg6
{[%clk 0:00:21]} 57. Kf2 {[%clk 0:00:08.2]} 57... Bxd4+ {[%clk 0:00:19.9]} 58.
Kg3 {[%clk 0:00:09.2]} 58... Kh5 {[%clk 0:00:20.5]} 59. e5 {[%clk 0:00:10.4]}
59... Bb6 {[%clk 0:00:10.4]} 60. e6 {[%clk 0:00:10.5]} 60... Bc5 {[%clk
0:00:11.6]} 61. b6 {[%clk 0:00:07.8]} 61... Kg6 {[%clk 0:00:12.8]} 62. b7 {[%clk
0:00:08.1]} 62... Bd6 {[%clk 0:00:13]} 63. Kxg4 {[%clk 0:00:09.2]} 63... Kf6
{[%clk 0:00:13.4]} 64. f5 {[%clk 0:00:10]} 64... Bb8 {[%clk 0:00:12.2]} 65. Kf3
{[%clk 0:00:08.4]} 65... Ke7 {[%clk 0:00:12.8]} 66. Ke4 {[%clk 0:00:09]} 66...
Kd6 {[%clk 0:00:14.2]} 67. Kd4 {[%clk 0:00:10]} 67... Bc7 {[%clk 0:00:13.1]} 68.
Kc4 {[%clk 0:00:10]} 68... Bb8 {[%clk 0:00:12.3]} 69. Kb5 {[%clk 0:00:10.5]}
69... Bc7 {[%clk 0:00:13.5]} 70. Ka6 {[%clk 0:00:11.3]} 70... Bb8 {[%clk
0:00:12.7]} 71. Kxa5 {[%clk 0:00:12.3]} 71... Bc7+ {[%clk 0:00:12.6]} 72. Kb5
{[%clk 0:00:13.5]} 72... Bb8 {[%clk 0:00:13.8]} 73. a5 {[%clk 0:00:14.6]} 73...
Bc7 {[%clk 0:00:15.4]} 74. a6 {[%clk 0:00:15.2]} 74... Bb8 {[%clk 0:00:16.3]}
75. Kb6 {[%clk 0:00:15.4]} 75... Bc7+ {[%clk 0:00:17.3]} 76. Kb5 {[%clk
0:00:16.4]} 76... Bb8 {[%clk 0:00:18]} 77. Kc4 {[%clk 0:00:17]} 77... Bc7 {[%clk
0:00:18.8]} 78. Kd3 {[%clk 0:00:17.8]} 78... Bb8 {[%clk 0:00:20.1]} 79. Ke4
{[%clk 0:00:18.4]} 79... Ke7 {[%clk 0:00:18.9]} 80. Kd5 {[%clk 0:00:18.6]} 80...
Kf6 {[%clk 0:00:20]} 81. Kc6 {[%clk 0:00:19.2]} 81... Ke7 {[%clk 0:00:21.5]} 82.
a7 {[%clk 0:00:19.1]} 82... Bxa7 {[%clk 0:00:21.5]} 83. Kc7 {[%clk 0:00:20.2]}
1-0

[Event "*** Titled Tuesday Blitz"]
[Site "Chess.com"]
[Date "2018.09.04"]
[Round "5"]
[White "Gr3egor"]
[Black "Eagle_pada"]
[Result "0-1"]
[WhiteElo "2488"]
[BlackElo "2674"]
[TimeControl "180+2"]
[EndTime "14:36:21 PDT"]
[Termination "Eagle_pada won by resignation"]

1. d4 {[%clk 0:03:01.7]} 1... Nf6 {[%clk 0:02:59.4]} 2. c4 {[%clk 0:03:02.6]}
2... e6 {[%clk 0:02:57.9]} 3. Nc3 {[%clk 0:03:03.6]} 3... Bb4 {[%clk 0:02:58.1]}
4. Qc2 {[%clk 0:03:05]} 4... O-O {[%clk 0:02:55.9]} 5. Nf3 {[%clk 0:03:05.3]}
5... d5 {[%clk 0:02:55.4]} 6. cxd5 {[%clk 0:03:02.3]} 6... exd5 {[%clk
0:02:54.9]} 7. Bg5 {[%clk 0:03:03.9]} 7... h6 {[%clk 0:02:53.5]} 8. Bh4 {[%clk
0:03:05.5]} 8... c5 {[%clk 0:02:52.8]} 9. e3 {[%clk 0:03:06.4]} 9... cxd4 {[%clk
0:02:49.5]} 10. Nxd4 {[%clk 0:03:03.9]} 10... Nc6 {[%clk 0:02:49.3]} 11. Nxc6
{[%clk 0:03:03.2]} 11... bxc6 {[%clk 0:02:51.2]} 12. Bd3 {[%clk 0:03:04.7]}
12... Bd6 {[%clk 0:02:47.2]} 13. Bg3 {[%clk 0:02:59.4]} 13... Bxg3 {[%clk
0:02:44.5]} 14. hxg3 {[%clk 0:03:01.3]} 14... Re8 {[%clk 0:02:45.5]} 15. O-O
{[%clk 0:03:01.4]} 15... Ng4 {[%clk 0:02:41.7]} 16. Bf5 {[%clk 0:02:57.9]} 16...
Qf6 {[%clk 0:02:39.8]} 17. Bxg4 {[%clk 0:02:55.3]} 17... Bxg4 {[%clk 0:02:41.7]}
18. Qa4 {[%clk 0:02:53.8]} 18... h5 {[%clk 0:02:40.3]} 19. Rac1 {[%clk
0:02:53.5]} 19... Re6 {[%clk 0:02:38.4]} 20. b4 {[%clk 0:02:47.5]} 20... d4
{[%clk 0:02:36.8]} 21. exd4 {[%clk 0:02:43.7]} 21... Qxd4 {[%clk 0:02:38.7]} 22.
Qb3 {[%clk 0:02:34.8]} 22... h4 {[%clk 0:02:25.1]} 23. gxh4 {[%clk 0:02:34.4]}
23... Rg6 {[%clk 0:02:24]} 24. Kh2 {[%clk 0:02:20.8]} 24... Bf3 {[%clk
0:02:22.2]} 25. g3 {[%clk 0:02:20.9]} 25... Rxg3 {[%clk 0:02:15.6]} 26. fxg3
{[%clk 0:01:55.9]} 26... Qd2+ {[%clk 0:02:14.5]} 0-1

[Event "*** Titled Tuesday Blitz"]
[Site "Chess.com"]
[Date "2018.09.04"]
[Round "5"]
[White "Kriari"]
[Black "LawrenceTrent"]
[Result "1-0"]
[WhiteElo "2825"]
[BlackElo "2555"]
[TimeControl "180+2"]
[EndTime "14:37:09 PDT"]
[Termination "Kriari won by resignation"]

1. d4 {[%clk 0:03:01.9]} 1... d5 {[%clk 0:02:59.3]} 2. Nc3 {[%clk 0:03:03.4]}
2... Bf5 {[%clk 0:02:58.8]} 3. Bf4 {[%clk 0:03:03.9]} 3... e6 {[%clk 0:02:59.4]}
4. e3 {[%clk 0:03:01]} 4... Nf6 {[%clk 0:02:58.5]} 5. f3 {[%clk 0:03:00.8]} 5...
Bd6 {[%clk 0:02:55.8]} 6. g4 {[%clk 0:02:58.1]} 6... Bg6 {[%clk 0:02:56.9]} 7.
h4 {[%clk 0:02:58.1]} 7... h6 {[%clk 0:02:57.7]} 8. Bd3 {[%clk 0:02:57.4]} 8...
Bxd3 {[%clk 0:02:57.5]} 9. Qxd3 {[%clk 0:02:59.3]} 9... a6 {[%clk 0:02:54.8]}
10. Nge2 {[%clk 0:02:55.7]} 10... c5 {[%clk 0:02:53.4]} 11. dxc5 {[%clk
0:02:57.1]} 11... Bxc5 {[%clk 0:02:54.3]} 12. O-O-O {[%clk 0:02:57.5]} 12... Nc6
{[%clk 0:02:52.7]} 13. Ng3 {[%clk 0:02:18.9]} 13... e5 {[%clk 0:02:39.8]} 14. g5
{[%clk 0:02:20.3]} 14... exf4 {[%clk 0:02:40.5]} 15. exf4 {[%clk 0:02:21.5]}
15... Qd6 {[%clk 0:02:12.6]} 16. gxf6 {[%clk 0:02:09.6]} 16... Qxf4+ {[%clk
0:02:07.5]} 17. Kb1 {[%clk 0:02:10.9]} 17... Qxg3 {[%clk 0:01:54]} 18. Qxd5
{[%clk 0:02:01.9]} 18... Rd8 {[%clk 0:01:13.3]} 19. Rhe1+ {[%clk 0:01:49.6]}
19... Be7 {[%clk 0:01:05.8]} 20. Qxd8+ {[%clk 0:01:46.7]} 1-0

[Event "*** Titled Tuesday Blitz"]
[Site "Chess.com"]
[Date "2018.09.04"]
[Round "5"]
[White "51616516516"]
[Black "RU_B9"]
[Result "1-0"]
[WhiteElo "2200"]
[BlackElo "2003"]
[TimeControl "180+2"]
[EndTime "14:37:28 PDT"]
[Termination "51616516516 won by resignation"]

1. d4 {[%clk 0:02:57.9]} 1... Nf6 {[%clk 0:02:58]} 2. c4 {[%clk 0:02:58.6]} 2...
e6 {[%clk 0:02:58.6]} 3. Nc3 {[%clk 0:02:59.5]} 3... d5 {[%clk 0:02:59.7]} 4.
cxd5 {[%clk 0:03:00.5]} 4... exd5 {[%clk 0:03:01.6]} 5. Bg5 {[%clk 0:03:01.6]}
5... c6 {[%clk 0:03:01.6]} 6. e3 {[%clk 0:03:01.7]} 6... Bd6 {[%clk 0:02:59.3]}
7. Bd3 {[%clk 0:02:49.5]} 7... Nbd7 {[%clk 0:02:53.4]} 8. Nge2 {[%clk
0:02:49.1]} 8... Nf8 {[%clk 0:02:49.2]} 9. h3 {[%clk 0:02:40.5]} 9... Ne6 {[%clk
0:02:47.7]} 10. Bh4 {[%clk 0:02:40.4]} 10... Qe7 {[%clk 0:02:28.7]} 11. O-O
{[%clk 0:02:31.9]} 11... O-O {[%clk 0:02:27.5]} 12. Qc2 {[%clk 0:02:31.7]} 12...
g6 {[%clk 0:02:25.1]} 13. e4 {[%clk 0:02:22.7]} 13... g5 {[%clk 0:01:54]} 14.
Bxg5 {[%clk 0:02:16.4]} 14... Nxg5 {[%clk 0:01:53.3]} 15. e5 {[%clk 0:02:17.5]}
15... Bxe5 {[%clk 0:01:30.1]} 16. dxe5 {[%clk 0:02:17.9]} 16... Qxe5 {[%clk
0:01:30.9]} 17. Ng3 {[%clk 0:02:09.9]} 17... Bxh3 {[%clk 0:01:23.6]} 18. gxh3
{[%clk 0:01:54.2]} 18... Nxh3+ {[%clk 0:01:21.1]} 19. Kh2 {[%clk 0:01:44.4]}
19... Ng4+ {[%clk 0:01:05.8]} 20. Kxh3 {[%clk 0:01:36.7]} 20... Ne3 {[%clk
0:01:06.3]} 1-0

[Event "*** Titled Tuesday Blitz"]
[Site "Chess.com"]
[Date "2018.09.04"]
[Round "5"]
[White "ItalianMachine"]
[Black "Synctel"]
[Result "1-0"]
[WhiteElo "2302"]
[BlackElo "1896"]
[TimeControl "180+2"]
[EndTime "14:37:29 PDT"]
[Termination "ItalianMachine won by resignation"]

1. e4 {[%clk 0:03:01.9]} 1... e6 {[%clk 0:03:00.2]} 2. d4 {[%clk 0:03:00.8]}
2... d5 {[%clk 0:03:01.4]} 3. Nd2 {[%clk 0:03:00.6]} 3... Nc6 {[%clk 0:03:01.5]}
4. c3 {[%clk 0:02:57]} 4... e5 {[%clk 0:03:02.3]} 5. dxe5 {[%clk 0:02:54.3]}
5... dxe4 {[%clk 0:02:32.7]} 6. Qa4 {[%clk 0:02:26.5]} 6... Qd5 {[%clk
0:01:37.3]} 7. Nxe4 {[%clk 0:01:53.6]} 7... Bf5 {[%clk 0:00:54.3]} 8. Ng3 {[%clk
0:01:46.1]} 8... Qxe5+ {[%clk 0:00:52.3]} 9. Be3 {[%clk 0:01:47.2]} 9... Bd7
{[%clk 0:00:24.5]} 10. Nf3 {[%clk 0:01:45.9]} 10... Qa5 {[%clk 0:00:19.6]} 11.
Qb3 {[%clk 0:01:37.4]} 11... Kd8 {[%clk 0:00:16.8]} 1-0

[Event "*** Titled Tuesday Blitz"]
[Site "Chess.com"]
[Date "2018.09.04"]
[Round "5"]
[White "arna"]
[Black "aquaticpineapples"]
[Result "0-1"]
[WhiteElo "2067"]
[BlackElo "2000"]
[TimeControl "180+2"]
[EndTime "14:37:33 PDT"]
[Termination "aquaticpineapples won on time"]

1. e4 {[%clk 0:02:59.4]} 1... d5 {[%clk 0:03:00.6]} 2. Nc3 {[%clk 0:02:54.1]}
2... e6 {[%clk 0:02:58.4]} 3. d4 {[%clk 0:02:53.2]} 3... Bb4 {[%clk 0:02:58.6]}
4. Ne2 {[%clk 0:02:51.7]} 4... dxe4 {[%clk 0:02:58.7]} 5. a3 {[%clk 0:02:50.7]}
5... Bxc3+ {[%clk 0:02:59.7]} 6. Nxc3 {[%clk 0:02:51.2]} 6... Nc6 {[%clk
0:03:01.2]} 7. Bb5 {[%clk 0:02:10]} 7... Ne7 {[%clk 0:03:00.8]} 8. Nxe4 {[%clk
0:02:07.2]} 8... O-O {[%clk 0:03:01.3]} 9. c3 {[%clk 0:01:56.6]} 9... Qd5 {[%clk
0:03:00.9]} 10. Bd3 {[%clk 0:00:59.1]} 10... f5 {[%clk 0:03:00.7]} 11. Ng3
{[%clk 0:00:28.9]} 11... Qxg2 {[%clk 0:02:58.4]} 12. Rf1 {[%clk 0:00:16.8]}
12... e5 {[%clk 0:02:34.2]} 13. Bc4+ {[%clk 0:00:12.2]} 13... Kh8 {[%clk
0:02:34.4]} 14. Bg5 {[%clk 0:00:05.7]} 14... exd4 {[%clk 0:02:30.3]} 15. Qh5
{[%clk 0:00:03.1]} 15... f4 {[%clk 0:02:19.3]} 16. Ne2 {[%clk 0:00:02.4]} 16...
Bg4 {[%clk 0:02:10.2]} 0-1

[Event "*** Titled Tuesday Blitz"]
[Site "Chess.com"]
[Date "2018.09.04"]
[Round "5"]
[White "biostatistician"]
[Black "OglazaOskar2005"]
[Result "1-0"]
[WhiteElo "2478"]
[BlackElo "2302"]
[TimeControl "180+2"]
[EndTime "14:38:20 PDT"]
[Termination "biostatistician won by resignation"]

1. d4 {[%clk 0:03:01.8]} 1... Nf6 {[%clk 0:02:59.6]} 2. Nf3 {[%clk 0:03:03.2]}
2... g6 {[%clk 0:03:00.2]} 3. c4 {[%clk 0:03:04.5]} 3... Bg7 {[%clk 0:03:01.3]}
4. Nc3 {[%clk 0:03:06.4]} 4... d5 {[%clk 0:03:02.7]} 5. cxd5 {[%clk 0:03:08.3]}
5... Nxd5 {[%clk 0:03:04.2]} 6. e4 {[%clk 0:03:09.7]} 6... Nxc3 {[%clk
0:03:05.4]} 7. bxc3 {[%clk 0:03:11.6]} 7... c5 {[%clk 0:03:06.8]} 8. Be3 {[%clk
0:03:12.5]} 8... O-O {[%clk 0:03:00.1]} 9. Be2 {[%clk 0:03:12.6]} 9... Bg4
{[%clk 0:02:58.6]} 10. O-O {[%clk 0:03:13.8]} 10... cxd4 {[%clk 0:02:54.9]} 11.
cxd4 {[%clk 0:03:15.7]} 11... Nc6 {[%clk 0:02:56]} 12. d5 {[%clk 0:03:17]} 12...
Nb4 {[%clk 0:02:25.3]} 13. Rb1 {[%clk 0:03:13.4]} 13... Nxa2 {[%clk 0:02:25.7]}
14. Rxb7 {[%clk 0:03:04.1]} 14... Nc3 {[%clk 0:02:26.6]} 15. Qd3 {[%clk
0:03:04.3]} 15... Nxe2+ {[%clk 0:02:14.3]} 16. Qxe2 {[%clk 0:03:05.3]} 16... e6
{[%clk 0:02:11.7]} 17. dxe6 {[%clk 0:02:52.8]} 17... Bxe6 {[%clk 0:02:08.6]} 18.
Rxa7 {[%clk 0:02:54]} 18... Rxa7 {[%clk 0:02:03.9]} 19. Bxa7 {[%clk 0:02:55.9]}
19... Qc7 {[%clk 0:01:58.6]} 20. Bd4 {[%clk 0:02:54]} 20... Bc4 {[%clk
0:01:39.3]} 21. Qc2 {[%clk 0:02:51.7]} 21... Rc8 {[%clk 0:01:40.5]} 22. Rc1
{[%clk 0:02:47.8]} 22... Bxd4 {[%clk 0:01:32.1]} 23. Nxd4 {[%clk 0:02:49.7]}
23... Qb7 {[%clk 0:00:58.7]} 24. Qb1 {[%clk 0:02:40]} 24... Qxb1 {[%clk
0:00:51.6]} 25. Rxb1 {[%clk 0:02:41.9]} 25... Bd3 {[%clk 0:00:53]} 26. Re1
{[%clk 0:02:35]} 26... Bxe4 {[%clk 0:00:54.1]} 27. f3 {[%clk 0:02:36]} 27... Bd5
{[%clk 0:00:55]} 28. Kf2 {[%clk 0:02:37.1]} 28... Rc4 {[%clk 0:00:55.7]} 29. Ke3
{[%clk 0:02:36.6]} 29... f5 {[%clk 0:00:53.5]} 30. h4 {[%clk 0:02:32.5]} 30...
Kg7 {[%clk 0:00:49.3]} 31. Ra1 {[%clk 0:02:27.8]} 31... f4+ {[%clk 0:00:39.1]}
32. Kd3 {[%clk 0:02:27.2]} 32... Rc7 {[%clk 0:00:40.4]} 33. Ra5 {[%clk
0:02:18.9]} 33... Bc4+ {[%clk 0:00:38]} 34. Kd2 {[%clk 0:02:18.5]} 34... Bf1
{[%clk 0:00:37.8]} 35. Ne6+ {[%clk 0:02:17.8]} 1-0

[Event "*** Titled Tuesday Blitz"]
[Site "Chess.com"]
[Date "2018.09.04"]
[Round "5"]
[White "Gareth-Bale11"]
[Black "MaxLeto"]
[Result "1-0"]
[WhiteElo "2616"]
[BlackElo "2379"]
[TimeControl "180+2"]
[EndTime "14:38:28 PDT"]
[Termination "Gareth-Bale11 won by checkmate"]

1. e4 {[%clk 0:03:01.9]} 1... h5 {[%clk 0:02:53.3]} 2. d4 {[%clk 0:02:58.2]}
2... h4 {[%clk 0:02:55.2]} 3. h3 {[%clk 0:02:58]} 3... c6 {[%clk 0:02:55.9]} 4.
d5 {[%clk 0:02:57.2]} 4... e6 {[%clk 0:01:33.9]} 5. Nc3 {[%clk 0:02:51.8]} 5...
Nf6 {[%clk 0:01:33.1]} 6. d6 {[%clk 0:02:27.2]} 6... Qa5 {[%clk 0:01:29.1]} 7.
Nf3 {[%clk 0:02:25.9]} 7... Nxe4 {[%clk 0:01:27.2]} 8. Qd4 {[%clk 0:02:14.9]}
8... Nxd6 {[%clk 0:01:16.5]} 9. Bf4 {[%clk 0:01:49.3]} 9... Nf5 {[%clk 0:01:14]}
10. Qd2 {[%clk 0:01:40.1]} 10... Bb4 {[%clk 0:01:12.7]} 11. Bd3 {[%clk
0:01:40.5]} 11... d5 {[%clk 0:01:07.3]} 12. Bxf5 {[%clk 0:01:33.3]} 12... exf5
{[%clk 0:01:09.2]} 13. O-O {[%clk 0:01:34]} 13... Be6 {[%clk 0:01:02.1]} 14.
Rfe1 {[%clk 0:01:33.1]} 14... Na6 {[%clk 0:00:48.5]} 15. a3 {[%clk 0:01:30.9]}
15... Bxc3 {[%clk 0:00:48.4]} 16. bxc3 {[%clk 0:01:32.8]} 16... O-O-O {[%clk
0:00:47]} 17. Nd4 {[%clk 0:01:26.8]} 17... Nc5 {[%clk 0:00:46.5]} 18. f3 {[%clk
0:01:23.7]} 18... Rde8 {[%clk 0:00:43]} 19. Bh2 {[%clk 0:01:12.4]} 19... Bd7
{[%clk 0:00:36.7]} 20. Qf4 {[%clk 0:01:10.4]} 20... Qxc3 {[%clk 0:00:33.7]} 21.
Qc7# {[%clk 0:01:09]} 1-0

[Event "*** Titled Tuesday Blitz"]
[Site "Chess.com"]
[Date "2018.09.04"]
[Round "5"]
[White "GMBenjaminBok"]
[Black "JozefKneht"]
[Result "1-0"]
[WhiteElo "2656"]
[BlackElo "2486"]
[TimeControl "180+2"]
[EndTime "14:38:33 PDT"]
[Termination "GMBenjaminBok won by resignation"]

1. c4 {[%clk 0:03:01.9]} 1... e6 {[%clk 0:03:00]} 2. Nc3 {[%clk 0:03:02.6]} 2...
d5 {[%clk 0:03:00.3]} 3. d4 {[%clk 0:03:03.7]} 3... Nf6 {[%clk 0:03:01.3]} 4.
cxd5 {[%clk 0:03:03.7]} 4... exd5 {[%clk 0:03:01.5]} 5. Bg5 {[%clk 0:03:04.6]}
5... Be7 {[%clk 0:03:03.2]} 6. e3 {[%clk 0:03:05.9]} 6... O-O {[%clk 0:03:04.4]}
7. Bd3 {[%clk 0:03:06.8]} 7... Nbd7 {[%clk 0:03:05.7]} 8. Nf3 {[%clk 0:03:04.7]}
8... Re8 {[%clk 0:03:06.5]} 9. O-O {[%clk 0:03:05]} 9... c6 {[%clk 0:03:05.8]}
10. Rb1 {[%clk 0:03:03.2]} 10... a5 {[%clk 0:03:02.8]} 11. Qc2 {[%clk
0:03:03.6]} 11... Nf8 {[%clk 0:03:02.8]} 12. a3 {[%clk 0:03:02.8]} 12... Ne4
{[%clk 0:03:02.9]} 13. Bxe7 {[%clk 0:02:47.8]} 13... Qxe7 {[%clk 0:03:02.9]} 14.
b4 {[%clk 0:02:46.1]} 14... Ng6 {[%clk 0:02:50.7]} 15. Bxe4 {[%clk 0:02:35.5]}
15... dxe4 {[%clk 0:02:50.9]} 16. Nd2 {[%clk 0:02:36.9]} 16... f5 {[%clk
0:02:51.7]} 17. b5 {[%clk 0:02:29.3]} 17... Be6 {[%clk 0:02:49.8]} 18. bxc6
{[%clk 0:02:29.5]} 18... bxc6 {[%clk 0:02:50.4]} 19. Na4 {[%clk 0:02:28.9]}
19... Qxa3 {[%clk 0:02:34.8]} 20. Nc5 {[%clk 0:02:16.9]} 20... Qa2 {[%clk
0:02:17.6]} 21. Rb2 {[%clk 0:02:06.5]} 21... Qd5 {[%clk 0:02:16.8]} 22. Rb7
{[%clk 0:01:54.6]} 22... Qd6 {[%clk 0:01:46.2]} 23. Rfb1 {[%clk 0:01:52.2]}
23... Bd5 {[%clk 0:01:46.3]} 24. Nc4 {[%clk 0:01:34.1]} 24... Qf6 {[%clk
0:01:42.6]} 25. g3 {[%clk 0:01:24.5]} 25... a4 {[%clk 0:01:20.9]} 26. Nb6 {[%clk
0:01:22.5]} 26... Rad8 {[%clk 0:01:17.4]} 27. Ra7 {[%clk 0:01:16.5]} 27... Qg5
{[%clk 0:01:16.9]} 28. Nxd5 {[%clk 0:01:14.9]} 28... cxd5 {[%clk 0:01:16.4]} 29.
Rbb7 {[%clk 0:01:15.5]} 29... Re7 {[%clk 0:01:10.1]} 30. Rxe7 {[%clk 0:01:12.6]}
30... Nxe7 {[%clk 0:01:10.2]} 31. Ne6 {[%clk 0:01:13.4]} 1-0

[Event "*** Titled Tuesday Blitz"]
[Site "Chess.com"]
[Date "2018.09.04"]
[Round "5"]
[White "LuisFSiles"]
[Black "northridgehawk"]
[Result "0-1"]
[WhiteElo "2176"]
[BlackElo "2128"]
[TimeControl "180+2"]
[EndTime "14:38:42 PDT"]
[Termination "northridgehawk won by resignation"]

1. e4 {[%clk 0:03:01.9]} 1... e5 {[%clk 0:02:46.4]} 2. Nf3 {[%clk 0:03:02.2]}
2... Nc6 {[%clk 0:02:47.8]} 3. Bc4 {[%clk 0:03:03.1]} 3... Nf6 {[%clk
0:02:48.7]} 4. d3 {[%clk 0:03:01.3]} 4... Bc5 {[%clk 0:02:49.7]} 5. O-O {[%clk
0:03:00.6]} 5... d6 {[%clk 0:02:23.8]} 6. a4 {[%clk 0:02:56.1]} 6... a6 {[%clk
0:02:24.4]} 7. Nc3 {[%clk 0:02:39.8]} 7... O-O {[%clk 0:02:20.3]} 8. Bg5 {[%clk
0:02:35.4]} 8... h6 {[%clk 0:02:18.5]} 9. Bh4 {[%clk 0:02:34.5]} 9... Be6 {[%clk
0:02:19.7]} 10. Nd5 {[%clk 0:02:23.9]} 10... Bxd5 {[%clk 0:02:19.9]} 11. Bxd5
{[%clk 0:02:24.5]} 11... g5 {[%clk 0:02:21.3]} 12. Bg3 {[%clk 0:02:04.9]} 12...
Nxd5 {[%clk 0:02:04.8]} 13. exd5 {[%clk 0:02:01.8]} 13... Ne7 {[%clk 0:02:06.1]}
14. c4 {[%clk 0:01:44.6]} 14... Nf5 {[%clk 0:02:04.4]} 15. Qd2 {[%clk
0:01:30.6]} 15... f6 {[%clk 0:01:35.5]} 16. b4 {[%clk 0:01:21.3]} 16... Ba7
{[%clk 0:01:32]} 17. Kh1 {[%clk 0:01:15]} 17... h5 {[%clk 0:01:24.8]} 18. h4
{[%clk 0:01:15.1]} 18... g4 {[%clk 0:01:20.1]} 19. Ne1 {[%clk 0:00:56]} 19...
Bd4 {[%clk 0:01:16.7]} 20. Rb1 {[%clk 0:00:50.7]} 20... b6 {[%clk 0:01:14.3]}
21. Nc2 {[%clk 0:00:50.9]} 21... Kg7 {[%clk 0:01:15]} 22. Ne3 {[%clk 0:00:50.3]}
22... Bxe3 {[%clk 0:01:14.3]} 23. fxe3 {[%clk 0:00:38.7]} 23... Nxg3+ {[%clk
0:01:14.6]} 24. Kg1 {[%clk 0:00:37.6]} 24... Nxf1 {[%clk 0:01:16]} 25. Rxf1
{[%clk 0:00:39.1]} 25... f5 {[%clk 0:01:17.5]} 0-1